[Event "Titled Tuesday Blitz May 16 Late 2023"]
[White "Araujo, Everson De Moura"]
[Black "Szyszylo, Rafal"]
[WhiteFideId "22737197"]
[BlackFideId "1109626"]
[WhiteElo "2035"]
[BlackElo "1951"]
[Result "1/2-1/2"]
[Round "04"]
[TimeControl "180+2"]
[Date "2023.05.16"]
[WhiteClock "0:00:04"]
[BlackClock "0:00:13"]

1. c4 {[%clk 0:02:26]}  d6 {[%clk 0:03:00]} 2. Nc3 {[%clk 0:02:27]}  Nf6 {[%clk 0:02:55]} 3. g3 {[%clk 0:02:27]}  g6 {[%clk 0:02:55]} 4. Bg2 {[%clk 0:02:27]}  Bg7 {[%clk 0:02:56]} 5. e4 {[%clk 0:02:27]}  O-O {[%clk 0:02:57]} 6. Nge2 {[%clk 0:02:27]}  e5 {[%clk 0:02:53]} 7. O-O {[%clk 0:02:27]}  Be6 {[%clk 0:02:53]} 8. d3 {[%clk 0:02:26]}  Ne8 {[%clk 0:02:48]} 9. f4 {[%clk 0:02:24]}  Nc6 {[%clk 0:02:36]} 10. f5 {[%clk 0:02:22]}  Bd7 {[%clk 0:02:35]} 11. g4 {[%clk 0:02:20]}  Bf6 {[%clk 0:02:34]} 12. Nd5 {[%clk 0:02:14]}  Bg5 {[%clk 0:02:32]} 13. f6 {[%clk 0:01:55]}  Bxc1 {[%clk 0:02:30]} 14. Rxc1 {[%clk 0:01:53]}  Bxg4 {[%clk 0:02:29]} 15. h3 {[%clk 0:01:49]}  Bxe2 {[%clk 0:02:23]} 16. Qxe2 {[%clk 0:01:50]}  Nd4 {[%clk 0:02:23]} 17. Qe3 {[%clk 0:01:48]}  c6 {[%clk 0:02:23]} 18. Nc3 {[%clk 0:01:24]}  Nxf6 {[%clk 0:02:18]} 19. Rf2 {[%clk 0:01:21]}  Nh5 {[%clk 0:02:18]} 20. Rcf1 {[%clk 0:01:18]}  Nf4 {[%clk 0:02:17]} 21. Rxf4 {[%clk 0:01:19]}  Qg5 {[%clk 0:01:52]} 22. h4 {[%clk 0:01:10]}  exf4 {[%clk 0:01:50]} 23. Qxd4 {[%clk 0:01:05]}  Qxh4 {[%clk 0:01:49]} 24. e5 {[%clk 0:01:04]}  dxe5 {[%clk 0:01:48]} 25. Qxe5 {[%clk 0:01:05]}  Rfe8 {[%clk 0:01:41]} 26. Qc7 {[%clk 0:01:04]}  Re7 {[%clk 0:01:30]} 27. Qd6 {[%clk 0:00:55]}  Rae8 {[%clk 0:01:13]} 28. Ne4 {[%clk 0:00:51]}  Re6 {[%clk 0:01:13]} 29. Qc7 {[%clk 0:00:36]}  R8e7 {[%clk 0:01:13]} 30. Qd8+ {[%clk 0:00:34]}  Kg7 {[%clk 0:01:12]} 31. Qd4+ {[%clk 0:00:30]}  f6 {[%clk 0:01:11]} 32. Nc5 {[%clk 0:00:20]}  Re1 {[%clk 0:01:07]} 33. Ne4 {[%clk 0:00:13]}  Rxf1+ {[%clk 0:00:59]} 34. Kxf1 {[%clk 0:00:14]}  g5 {[%clk 0:00:47]} 35. Qxf6+ {[%clk 0:00:13]}  Kg8 {[%clk 0:00:46]} 36. Qxe7 {[%clk 0:00:11]}  Qh6 {[%clk 0:00:22]} 37. Nf6+ {[%clk 0:00:10]}  Kh8 {[%clk 0:00:21]} 38. Be4 {[%clk 0:00:08]}  g4 {[%clk 0:00:17]} 39. Qxh7+ {[%clk 0:00:05]}  Qxh7 {[%clk 0:00:17]} 40. Nxh7 {[%clk 0:00:06]}  Kg7 {[%clk 0:00:16]} 41. Ng5 {[%clk 0:00:06]}  Kf6 {[%clk 0:00:15]} 42. Nh7+ {[%clk 0:00:05]}  Kg7 {[%clk 0:00:15]} 43. Ng5 {[%clk 0:00:05]}  Kf6 {[%clk 0:00:15]} 44. Nh7+ {[%clk 0:00:04]}  Kg7 {[%clk 0:00:13]} 1/2-1/2


[Site "https://www.chess.com"]

[Event "Titled Tuesday Blitz May 16 Late 2023"]
[White "Pavlidou, Ekaterini"]
[Black "Horokoskii"]
[WhiteFideId "4213262"]
[WhiteElo "2126"]
[BlackElo "2149"]
[Result "0-1"]
[Round "04"]
[TimeControl "180+2"]
[Date "2023.05.16"]
[WhiteClock "0:00:39"]
[BlackClock "0:00:09"]

1. d4 {[%clk 0:03:00]}  Nf6 {[%clk 0:02:49]} 2. c4 {[%clk 0:03:00]}  c5 {[%clk 0:02:48]} 3. d5 {[%clk 0:03:00]}  e6 {[%clk 0:02:49]} 4. Nc3 {[%clk 0:03:00]}  exd5 {[%clk 0:02:49]} 5. cxd5 {[%clk 0:03:01]}  d6 {[%clk 0:02:49]} 6. e4 {[%clk 0:03:00]}  g6 {[%clk 0:02:49]} 7. h3 {[%clk 0:03:00]}  Bg7 {[%clk 0:02:49]} 8. Nf3 {[%clk 0:03:00]}  O-O {[%clk 0:02:46]} 9. Bd3 {[%clk 0:02:59]}  a6 {[%clk 0:02:40]} 10. a4 {[%clk 0:02:58]}  b6 {[%clk 0:02:40]} 11. O-O {[%clk 0:02:58]}  Nbd7 {[%clk 0:02:40]} 12. Bf4 {[%clk 0:02:57]}  Qe7 {[%clk 0:02:28]} 13. Nd2 {[%clk 0:02:56]}  Re8 {[%clk 0:02:24]} 14. Bh2 {[%clk 0:02:53]}  Rb8 {[%clk 0:02:12]} 15. Nc4 {[%clk 0:02:48]}  Ne5 {[%clk 0:02:07]} 16. Be2 {[%clk 0:02:31]}  Nxc4 {[%clk 0:02:01]} 17. Bxc4 {[%clk 0:02:30]}  Nxe4 {[%clk 0:01:59]} 18. Nxe4 {[%clk 0:02:29]}  Qxe4 {[%clk 0:01:58]} 19. Bxd6 {[%clk 0:02:29]}  Qxc4 {[%clk 0:01:31]} 20. Bxb8 {[%clk 0:02:28]}  Bxh3 {[%clk 0:01:30]} 21. gxh3 {[%clk 0:02:24]}  Rxb8 {[%clk 0:01:29]} 22. Ra3 {[%clk 0:02:14]}  Bxb2 {[%clk 0:01:24]} 23. Rd3 {[%clk 0:02:14]}  Bd4 {[%clk 0:01:24]} 24. d6 {[%clk 0:02:14]}  Qd5 {[%clk 0:01:22]} 25. Qf3 {[%clk 0:01:53]}  Qxd6 {[%clk 0:01:18]} 26. Re1 {[%clk 0:01:54]}  Rd8 {[%clk 0:01:16]} 27. Rb3 {[%clk 0:01:52]}  h5 {[%clk 0:00:52]} 28. Re4 {[%clk 0:01:47]}  Qc7 {[%clk 0:00:29]} 29. Rb1 {[%clk 0:01:45]}  Rd6 {[%clk 0:00:28]} 30. Rbe1 {[%clk 0:01:45]}  Qc6 {[%clk 0:00:25]} 31. Re8+ {[%clk 0:01:41]}  Kg7 {[%clk 0:00:25]} 32. Qf4 {[%clk 0:01:28]}  Rf6 {[%clk 0:00:21]} 33. Qb8 {[%clk 0:01:02]}  Bxf2+ {[%clk 0:00:21]} 34. Kh2 {[%clk 0:01:01]}  Bxe1 {[%clk 0:00:15]} 35. Rg8+ {[%clk 0:00:59]}  Kh6 {[%clk 0:00:15]} 36. Rh8+ {[%clk 0:00:59]}  Kg5 {[%clk 0:00:16]} 37. Qe5+ {[%clk 0:00:56]}  Rf5 {[%clk 0:00:12]} 38. Qe3+ {[%clk 0:00:55]}  Kf6 {[%clk 0:00:09]} 39. Qxe1 {[%clk 0:00:50]}  Qd6+ {[%clk 0:00:09]} 40. Kh1 {[%clk 0:00:49]}  Qd5+ {[%clk 0:00:10]} 41. Kh2 {[%clk 0:00:50]}  Qe5+ {[%clk 0:00:10]} 42. Qxe5+ {[%clk 0:00:50]}  Rxe5 {[%clk 0:00:11]} 43. Rb8 {[%clk 0:00:49]}  Re6 {[%clk 0:00:11]} 44. Ra8 {[%clk 0:00:50]}  Ke5 {[%clk 0:00:12]} 45. Rxa6 {[%clk 0:00:50]}  Kd4 {[%clk 0:00:12]} 46. Kg3 {[%clk 0:00:51]}  Kd3 {[%clk 0:00:12]} 47. Kf4 {[%clk 0:00:48]}  c4 {[%clk 0:00:13]} 48. a5 {[%clk 0:00:46]}  bxa5 {[%clk 0:00:12]} 49. Rxa5 {[%clk 0:00:45]}  c3 {[%clk 0:00:12]} 50. Rd5+ {[%clk 0:00:46]}  Kc2 {[%clk 0:00:13]} 51. h4 {[%clk 0:00:43]}  Kb1 {[%clk 0:00:12]} 52. Rb5+ {[%clk 0:00:43]}  Kc1 {[%clk 0:00:12]} 53. Rc5 {[%clk 0:00:44]}  c2 {[%clk 0:00:12]} 54. Rd5 {[%clk 0:00:44]}  Rb6 {[%clk 0:00:10]} 55. Ke3 {[%clk 0:00:39]}  Kb2 {[%clk 0:00:09]} 0-1


[Site "https://www.chess.com"]

[Event "Titled Tuesday Blitz May 16 Late 2023"]
[White "Tristan, Leonardo"]
[Black "StarkyNZ"]
[WhiteFideId "113816"]
[WhiteElo "2461"]
[BlackElo "2276"]
[Result "1-0"]
[Round "04"]
[TimeControl "180+2"]
[Date "2023.05.16"]
[WhiteClock "0:00:04"]
[BlackClock "0:00:00"]

1. d4 {[%clk 0:03:00]}  Nf6 {[%clk 0:02:59]} 2. Nf3 {[%clk 0:03:01]}  e6 {[%clk 0:02:59]} 3. Bf4 {[%clk 0:03:01]}  b6 {[%clk 0:02:59]} 4. e3 {[%clk 0:03:01]}  Bb7 {[%clk 0:03:00]} 5. Nbd2 {[%clk 0:03:02]}  d6 {[%clk 0:03:00]} 6. Bd3 {[%clk 0:03:01]}  Nbd7 {[%clk 0:03:01]} 7. O-O {[%clk 0:03:00]}  c5 {[%clk 0:03:00]} 8. c3 {[%clk 0:03:00]}  Nd5 {[%clk 0:03:01]} 9. Bg3 {[%clk 0:02:59]}  Be7 {[%clk 0:03:01]} 10. e4 {[%clk 0:02:58]}  N5f6 {[%clk 0:03:01]} 11. Re1 {[%clk 0:02:58]}  cxd4 {[%clk 0:03:01]} 12. cxd4 {[%clk 0:02:59]}  O-O {[%clk 0:03:00]} 13. Qe2 {[%clk 0:02:45]}  Rc8 {[%clk 0:02:58]} 14. Rad1 {[%clk 0:02:45]}  Re8 {[%clk 0:02:54]} 15. e5 {[%clk 0:02:46]}  dxe5 {[%clk 0:02:53]} 16. dxe5 {[%clk 0:02:46]}  Nd5 {[%clk 0:02:51]} 17. Ne4 {[%clk 0:02:47]}  Nc5 {[%clk 0:02:48]} 18. Bb1 {[%clk 0:02:45]}  Ba6 {[%clk 0:02:47]} 19. Qd2 {[%clk 0:02:28]}  Nxe4 {[%clk 0:02:45]} 20. Rxe4 {[%clk 0:02:22]}  Bb4 {[%clk 0:02:37]} 21. Qg5 {[%clk 0:01:04]}  Be7 {[%clk 0:02:01]} 22. Qh5 {[%clk 0:00:42]}  g6 {[%clk 0:01:46]} 23. Qh6 {[%clk 0:00:41]}  Bf8 {[%clk 0:01:43]} 24. Qh4 {[%clk 0:00:31]}  Qxh4 {[%clk 0:01:30]} 25. Bxh4 {[%clk 0:00:31]}  Be7 {[%clk 0:01:26]} 26. Bxe7 {[%clk 0:00:23]}  Rxe7 {[%clk 0:01:24]} 27. Rde1 {[%clk 0:00:23]}  Rec7 {[%clk 0:01:24]} 28. h4 {[%clk 0:00:23]}  h5 {[%clk 0:01:19]} 29. Kh2 {[%clk 0:00:22]}  Rc1 {[%clk 0:01:18]} 30. Ng5 {[%clk 0:00:20]}  Rxe1 {[%clk 0:01:13]} 31. Rxe1 {[%clk 0:00:20]}  Rc4 {[%clk 0:01:10]} 32. Ne4 {[%clk 0:00:19]}  Rb4 {[%clk 0:01:02]} 33. b3 {[%clk 0:00:18]}  Rd4 {[%clk 0:01:00]} 34. g3 {[%clk 0:00:17]}  Kg7 {[%clk 0:00:55]} 35. f3 {[%clk 0:00:15]}  Nb4 {[%clk 0:00:54]} 36. g4 {[%clk 0:00:12]}  Bd3 {[%clk 0:00:43]} 37. Nf6 {[%clk 0:00:07]}  Bxb1 {[%clk 0:00:26]} 38. Rxb1 {[%clk 0:00:08]}  Rd2+ {[%clk 0:00:26]} 39. Kg3 {[%clk 0:00:08]}  Re2 {[%clk 0:00:24]} 40. gxh5 {[%clk 0:00:05]}  Rxe5 {[%clk 0:00:21]} 41. Ne8+ {[%clk 0:00:02]}  Kh6 {[%clk 0:00:18]} 42. hxg6 {[%clk 0:00:02]}  Kxg6 {[%clk 0:00:19]} 43. Nd6 {[%clk 0:00:03]}  Nxa2 {[%clk 0:00:14]} 44. Ra1 {[%clk 0:00:03]}  Re2 {[%clk 0:00:14]} 45. Ne4 {[%clk 0:00:03]}  a5 {[%clk 0:00:11]} 46. Rh1 {[%clk 0:00:03]}  Rb2 {[%clk 0:00:09]} 47. h5+ {[%clk 0:00:04]}  Kh6 {[%clk 0:00:09]} 48. Nf6 {[%clk 0:00:04]}  Rxb3 {[%clk 0:00:09]} 49. Ng4+ {[%clk 0:00:05]}  Kh7 {[%clk 0:00:09]} 50. h6 {[%clk 0:00:06]}  Nc3 {[%clk 0:00:06]} 51. Nf6+ {[%clk 0:00:06]}  Kh8 {[%clk 0:00:06]} 52. Rh4 {[%clk 0:00:05]}  Ne2+ {[%clk 0:00:06]} 53. Kf2 {[%clk 0:00:05]}  Nc1 {[%clk 0:00:02]} 54. Rg4 {[%clk 0:00:05]}  Nd3+ {[%clk 0:00:00]} 55. Kg3 {[%clk 0:00:04]} 1-0


[Site "https://www.chess.com"]

[Event "Titled Tuesday Blitz May 16 Late 2023"]
[White "Xavier_mompel"]
[Black "merinasian"]
[WhiteElo "2243"]
[BlackElo "2431"]
[Result "0-1"]
[Round "04"]
[TimeControl "180+2"]
[Date "2023.05.16"]
[WhiteClock "0:00:00"]
[BlackClock "0:00:45"]

1. e4 {[%clk 0:03:00]}  c6 {[%clk 0:02:55]} 2. Nf3 {[%clk 0:03:00]}  d5 {[%clk 0:02:51]} 3. Nc3 {[%clk 0:03:00]}  dxe4 {[%clk 0:02:49]} 4. Nxe4 {[%clk 0:03:01]}  Nf6 {[%clk 0:02:49]} 5. Nxf6+ {[%clk 0:03:01]}  exf6 {[%clk 0:02:49]} 6. d4 {[%clk 0:03:01]}  Bg4 {[%clk 0:02:46]} 7. c3 {[%clk 0:02:56]}  Bd6 {[%clk 0:02:46]} 8. Bd3 {[%clk 0:02:56]}  O-O {[%clk 0:02:45]} 9. O-O {[%clk 0:02:56]}  Nd7 {[%clk 0:02:43]} 10. h3 {[%clk 0:02:51]}  Bh5 {[%clk 0:02:42]} 11. Be3 {[%clk 0:02:49]}  Re8 {[%clk 0:02:39]} 12. Bf5 {[%clk 0:02:48]}  Nb6 {[%clk 0:02:35]} 13. g4 {[%clk 0:02:35]}  Bg6 {[%clk 0:02:34]} 14. Bxg6 {[%clk 0:02:24]}  hxg6 {[%clk 0:02:32]} 15. Qd3 {[%clk 0:02:23]}  Nd5 {[%clk 0:02:28]} 16. Bd2 {[%clk 0:02:19]}  g5 {[%clk 0:02:21]} 17. Rfe1 {[%clk 0:02:03]}  Qc7 {[%clk 0:02:17]} 18. c4 {[%clk 0:01:58]}  Nf4 {[%clk 0:02:14]} 19. Bxf4 {[%clk 0:01:58]}  Bxf4 {[%clk 0:02:14]} 20. d5 {[%clk 0:01:54]}  c5 {[%clk 0:02:08]} 21. Rad1 {[%clk 0:01:47]}  Qd6 {[%clk 0:02:05]} 22. a3 {[%clk 0:01:40]}  g6 {[%clk 0:02:04]} 23. Kg2 {[%clk 0:01:25]}  Kg7 {[%clk 0:02:04]} 24. Nd2 {[%clk 0:01:16]}  Be5 {[%clk 0:01:51]} 25. Ne4 {[%clk 0:01:13]}  Qb6 {[%clk 0:01:50]} 26. b3 {[%clk 0:01:09]}  Bd4 {[%clk 0:01:50]} 27. Re2 {[%clk 0:00:56]}  Rh8 {[%clk 0:01:49]} 28. Qf3 {[%clk 0:00:45]}  a5 {[%clk 0:01:44]} 29. Rxd4 {[%clk 0:00:28]}  cxd4 {[%clk 0:01:43]} 30. c5 {[%clk 0:00:29]}  Qd8 {[%clk 0:01:39]} 31. d6 {[%clk 0:00:27]}  Re8 {[%clk 0:01:30]} 32. Rd2 {[%clk 0:00:23]}  Re5 {[%clk 0:01:21]} 33. Rxd4 {[%clk 0:00:22]}  f5 {[%clk 0:01:13]} 34. Ng3 {[%clk 0:00:18]}  Qd7 {[%clk 0:01:09]} 35. Rc4 {[%clk 0:00:15]}  Rae8 {[%clk 0:01:05]} 36. gxf5 {[%clk 0:00:11]}  gxf5 {[%clk 0:01:05]} 37. Qh5 {[%clk 0:00:10]}  f4 {[%clk 0:01:02]} 38. Nf1 {[%clk 0:00:05]}  Qc6+ {[%clk 0:00:58]} 39. Kg1 {[%clk 0:00:04]}  g4 {[%clk 0:00:52]} 40. Qxg4+ {[%clk 0:00:03]}  Kh7 {[%clk 0:00:45]} 41. Qh4+ {[%clk 0:00:03]}  Kg6 {[%clk 0:00:45]} 42. Qg4+ {[%clk 0:00:00]}  Rg5 {[%clk 0:00:45]} 0-1


[Site "https://www.chess.com"]

[Event "Titled Tuesday Blitz May 16 Late 2023"]
[White "Calhoun, Luke"]
[Black "Slavin, Alexey"]
[WhiteFideId "2064421"]
[BlackFideId "24104388"]
[WhiteElo "2253"]
[BlackElo "2264"]
[Result "1-0"]
[Round "04"]
[TimeControl "180+2"]
[Date "2023.05.16"]
[WhiteClock "0:00:15"]
[BlackClock "0:00:00"]

1. d4 {[%clk 0:02:58]}  Nc6 {[%clk 0:02:59]} 2. Nf3 {[%clk 0:02:57]}  d6 {[%clk 0:02:59]} 3. Bf4 {[%clk 0:02:57]}  Bg4 {[%clk 0:02:59]} 4. d5 {[%clk 0:02:55]}  Bxf3 {[%clk 0:02:57]} 5. exf3 {[%clk 0:02:50]}  Nb8 {[%clk 0:02:47]} 6. Nc3 {[%clk 0:02:48]}  g6 {[%clk 0:02:47]} 7. Bb5+ {[%clk 0:02:36]}  Nd7 {[%clk 0:02:43]} 8. O-O {[%clk 0:02:34]}  Nf6 {[%clk 0:02:43]} 9. Re1 {[%clk 0:02:33]}  a6 {[%clk 0:02:37]} 10. Ba4 {[%clk 0:02:28]}  b5 {[%clk 0:02:37]} 11. Bb3 {[%clk 0:02:24]}  Nb6 {[%clk 0:02:37]} 12. a3 {[%clk 0:02:20]}  Bg7 {[%clk 0:02:36]} 13. Qe2 {[%clk 0:02:18]}  Nc8 {[%clk 0:02:32]} 14. a4 {[%clk 0:02:09]}  b4 {[%clk 0:02:28]} 15. Na2 {[%clk 0:02:07]}  a5 {[%clk 0:02:24]} 16. Qb5+ {[%clk 0:02:00]}  Qd7 {[%clk 0:02:19]} 17. Qb7 {[%clk 0:02:00]}  Ra7 {[%clk 0:02:17]} 18. Qb8 {[%clk 0:01:59]}  O-O {[%clk 0:02:16]} 19. Rad1 {[%clk 0:01:55]}  Ra6 {[%clk 0:02:03]} 20. Be3 {[%clk 0:01:52]}  c5 {[%clk 0:01:48]} 21. dxc6 {[%clk 0:01:45]}  Qxc6 {[%clk 0:01:39]} 22. Qb5 {[%clk 0:01:21]}  e6 {[%clk 0:01:27]} 23. Bc4 {[%clk 0:01:16]}  Qxb5 {[%clk 0:01:18]} 24. axb5 {[%clk 0:01:15]}  Ra8 {[%clk 0:01:18]} 25. c3 {[%clk 0:00:58]}  d5 {[%clk 0:01:17]} 26. Bf1 {[%clk 0:00:56]}  b3 {[%clk 0:01:11]} 27. Nc1 {[%clk 0:00:55]}  a4 {[%clk 0:01:11]} 28. Bc5 {[%clk 0:00:45]}  Rd8 {[%clk 0:01:07]} 29. Nd3 {[%clk 0:00:43]}  Nd7 {[%clk 0:01:06]} 30. Ba3 {[%clk 0:00:36]}  Rb8 {[%clk 0:01:03]} 31. Nb4 {[%clk 0:00:35]}  Na7 {[%clk 0:00:57]} 32. Nc6 {[%clk 0:00:34]}  Nxc6 {[%clk 0:00:57]} 33. bxc6 {[%clk 0:00:34]}  Bf8 {[%clk 0:00:45]} 34. Bxf8 {[%clk 0:00:31]}  Kxf8 {[%clk 0:00:38]} 35. c7 {[%clk 0:00:30]}  Nc5 {[%clk 0:00:37]} 36. cxd8=Q+ {[%clk 0:00:28]}  Rxd8 {[%clk 0:00:37]} 37. c4 {[%clk 0:00:26]}  d4 {[%clk 0:00:32]} 38. f4 {[%clk 0:00:24]}  f6 {[%clk 0:00:31]} 39. g3 {[%clk 0:00:23]}  Ke7 {[%clk 0:00:30]} 40. Bg2 {[%clk 0:00:22]}  h5 {[%clk 0:00:24]} 41. Bc6 {[%clk 0:00:22]}  Rd6 {[%clk 0:00:15]} 42. Bb5 {[%clk 0:00:21]}  Kd8 {[%clk 0:00:13]} 43. Ra1 {[%clk 0:00:22]}  d3 {[%clk 0:00:12]} 44. Bxa4 {[%clk 0:00:20]}  d2 {[%clk 0:00:12]} 45. Red1 {[%clk 0:00:21]}  Kc7 {[%clk 0:00:06]} 46. Bb5 {[%clk 0:00:21]}  e5 {[%clk 0:00:05]} 47. fxe5 {[%clk 0:00:19]}  fxe5 {[%clk 0:00:05]} 48. Kf1 {[%clk 0:00:20]}  e4 {[%clk 0:00:06]} 49. Ke2 {[%clk 0:00:20]}  Kb6 {[%clk 0:00:06]} 50. Rxd2 {[%clk 0:00:20]}  Nd3 {[%clk 0:00:07]} 51. Ra3 {[%clk 0:00:18]}  Kc5 {[%clk 0:00:07]} 52. Rxb3 {[%clk 0:00:17]}  Rf6 {[%clk 0:00:06]} 53. Rbxd3 {[%clk 0:00:17]}  exd3+ {[%clk 0:00:06]} 54. Rxd3 {[%clk 0:00:17]}  Re6+ {[%clk 0:00:06]} 55. Re3 {[%clk 0:00:18]}  Rd6 {[%clk 0:00:06]} 56. f4 {[%clk 0:00:18]}  Kb4 {[%clk 0:00:05]} 57. Re5 {[%clk 0:00:18]}  Rd4 {[%clk 0:00:03]} 58. Rg5 {[%clk 0:00:18]}  Rd6 {[%clk 0:00:03]} 59. Be8 {[%clk 0:00:17]}  Re6+ {[%clk 0:00:03]} 60. Kf3 {[%clk 0:00:17]}  Rxe8 {[%clk 0:00:03]} 61. Rxg6 {[%clk 0:00:17]}  Kxc4 {[%clk 0:00:03]} 62. Rg5 {[%clk 0:00:17]}  h4 {[%clk 0:00:02]} 63. g4 {[%clk 0:00:16]}  Rb8 {[%clk 0:00:02]} 64. Rh5 {[%clk 0:00:15]}  Rb3+ {[%clk 0:00:02]} 65. Ke4 {[%clk 0:00:15]}  Rxb2 {[%clk 0:00:02]} 66. Rxh4 {[%clk 0:00:15]}  Re2+ {[%clk 0:00:02]} 67. Kf5 {[%clk 0:00:15]}  Kd5 {[%clk 0:00:03]} 68. Rh8 {[%clk 0:00:15]}  Rf2 {[%clk 0:00:02]} 69. Rd8+ {[%clk 0:00:15]}  Kc6 {[%clk 0:00:02]} 70. h4 {[%clk 0:00:15]}  Kc7 {[%clk 0:00:03]} 71. Rd1 {[%clk 0:00:15]}  Rg2 {[%clk 0:00:02]} 72. h5 {[%clk 0:00:15]}  Rh2 {[%clk 0:00:03]} 73. Kg5 {[%clk 0:00:14]}  Kc6 {[%clk 0:00:00]} 74. f5 {[%clk 0:00:15]} 1-0


[Site "https://www.chess.com"]

[Event "Titled Tuesday Blitz May 16 Late 2023"]
[White "Bryant, Todd"]
[Black "Winkels, Marcel"]
[WhiteFideId "2031299"]
[BlackFideId "1003887"]
[WhiteElo "2356"]
[BlackElo "1900"]
[Result "1-0"]
[Round "04"]
[TimeControl "180+2"]
[Date "2023.05.16"]
[WhiteClock "0:00:22"]
[BlackClock "0:00:00"]

1. e4 {[%clk 0:02:59]}  Nf6 {[%clk 0:02:59]} 2. e5 {[%clk 0:02:59]}  Nd5 {[%clk 0:02:59]} 3. d4 {[%clk 0:02:59]}  d6 {[%clk 0:02:59]} 4. c4 {[%clk 0:03:00]}  Nb6 {[%clk 0:02:58]} 5. f4 {[%clk 0:03:00]}  g6 {[%clk 0:02:52]} 6. Nf3 {[%clk 0:02:53]}  Bg7 {[%clk 0:02:51]} 7. Nc3 {[%clk 0:02:43]}  O-O {[%clk 0:02:50]} 8. h4 {[%clk 0:02:35]}  h5 {[%clk 0:02:42]} 9. Ng5 {[%clk 0:02:23]}  dxe5 {[%clk 0:02:35]} 10. fxe5 {[%clk 0:02:24]}  c5 {[%clk 0:02:34]} 11. e6 {[%clk 0:02:16]}  Bxe6 {[%clk 0:02:04]} 12. Nxe6 {[%clk 0:02:15]}  fxe6 {[%clk 0:02:03]} 13. d5 {[%clk 0:01:56]}  exd5 {[%clk 0:01:52]} 14. Nxd5 {[%clk 0:01:46]}  Nxd5 {[%clk 0:01:42]} 15. cxd5 {[%clk 0:01:47]}  Qd6 {[%clk 0:01:42]} 16. Qd3 {[%clk 0:01:32]}  Nd7 {[%clk 0:01:41]} 17. Bd2 {[%clk 0:01:18]}  Bxb2 {[%clk 0:01:31]} 18. Rb1 {[%clk 0:01:18]}  Bd4 {[%clk 0:01:30]} 19. Rxb7 {[%clk 0:01:13]}  Qxd5 {[%clk 0:01:09]} 20. Qxg6+ {[%clk 0:00:54]}  Bg7 {[%clk 0:01:01]} 21. Rxd7 {[%clk 0:00:46]}  Qxa2 {[%clk 0:00:15]} 22. Rxe7 {[%clk 0:00:45]}  Qa1+ {[%clk 0:00:11]} 23. Ke2 {[%clk 0:00:44]}  Rad8 {[%clk 0:00:09]} 24. Qxg7+ {[%clk 0:00:26]}  Qxg7 {[%clk 0:00:07]} 25. Rxg7+ {[%clk 0:00:27]}  Kxg7 {[%clk 0:00:08]} 26. Bc3+ {[%clk 0:00:28]}  Kh7 {[%clk 0:00:06]} 27. Ke3 {[%clk 0:00:25]}  Rde8+ {[%clk 0:00:05]} 28. Kd2 {[%clk 0:00:23]}  Rd8+ {[%clk 0:00:02]} 29. Bd3+ {[%clk 0:00:23]}  Kh6 {[%clk 0:00:01]} 30. Ke2 {[%clk 0:00:23]}  Rfe8+ {[%clk 0:00:00]} 31. Kd2 {[%clk 0:00:22]} 1-0


[Site "https://www.chess.com"]

[Event "Titled Tuesday Blitz May 16 Late 2023"]
[White "Skaric, Djuro"]
[Black "Sailer, Mike"]
[WhiteFideId "934569"]
[BlackFideId "2012901"]
[WhiteElo "2282"]
[BlackElo "2109"]
[Result "1-0"]
[Round "04"]
[TimeControl "180+2"]
[Date "2023.05.16"]
[WhiteClock "0:01:37"]
[BlackClock "0:00:00"]

1. g3 {[%clk 0:03:00]}  d5 {[%clk 0:03:00]} 2. Bg2 {[%clk 0:02:58]}  Nf6 {[%clk 0:03:00]} 3. d3 {[%clk 0:02:56]}  Bf5 {[%clk 0:03:00]} 4. Nf3 {[%clk 0:02:56]}  e6 {[%clk 0:03:01]} 5. O-O {[%clk 0:02:56]}  Be7 {[%clk 0:03:02]} 6. Nc3 {[%clk 0:02:56]}  O-O {[%clk 0:03:02]} 7. h3 {[%clk 0:02:56]}  h6 {[%clk 0:03:02]} 8. g4 {[%clk 0:02:56]}  Bh7 {[%clk 0:03:03]} 9. Ne5 {[%clk 0:02:55]}  c5 {[%clk 0:02:58]} 10. f4 {[%clk 0:02:55]}  Nbd7 {[%clk 0:02:55]} 11. Nxd7 {[%clk 0:02:54]}  Qxd7 {[%clk 0:02:50]} 12. e4 {[%clk 0:02:54]}  d4 {[%clk 0:02:43]} 13. Ne2 {[%clk 0:02:53]}  b5 {[%clk 0:02:43]} 14. Ng3 {[%clk 0:02:53]}  c4 {[%clk 0:02:36]} 15. Bd2 {[%clk 0:02:50]}  a5 {[%clk 0:02:28]} 16. g5 {[%clk 0:02:48]}  hxg5 {[%clk 0:02:24]} 17. fxg5 {[%clk 0:02:48]}  Ne8 {[%clk 0:02:23]} 18. Qg4 {[%clk 0:02:47]}  cxd3 {[%clk 0:02:14]} 19. cxd3 {[%clk 0:02:46]}  Rc8 {[%clk 0:01:58]} 20. Rac1 {[%clk 0:02:46]}  Bb4 {[%clk 0:01:53]} 21. Bf4 {[%clk 0:02:35]}  Nd6 {[%clk 0:01:44]} 22. Nh5 {[%clk 0:02:33]}  Rxc1 {[%clk 0:01:37]} 23. Rxc1 {[%clk 0:02:31]}  Rc8 {[%clk 0:01:31]} 24. a3 {[%clk 0:02:26]}  Rxc1+ {[%clk 0:01:30]} 25. Bxc1 {[%clk 0:02:25]}  Qc8 {[%clk 0:00:56]} 26. Qd1 {[%clk 0:02:14]}  Bc5 {[%clk 0:00:50]} 27. Nf4 {[%clk 0:02:11]}  Nb7 {[%clk 0:00:17]} 28. h4 {[%clk 0:02:08]}  Be7 {[%clk 0:00:16]} 29. Bh3 {[%clk 0:02:05]}  Nd8 {[%clk 0:00:08]} 30. Bd2 {[%clk 0:02:05]}  b4 {[%clk 0:00:06]} 31. axb4 {[%clk 0:02:02]}  Bxb4 {[%clk 0:00:05]} 32. g6 {[%clk 0:01:56]}  Bxg6 {[%clk 0:00:05]} 33. Nxg6 {[%clk 0:01:55]}  fxg6 {[%clk 0:00:06]} 34. Bg5 {[%clk 0:01:54]}  Nf7 {[%clk 0:00:05]} 35. Bf4 {[%clk 0:01:43]}  Qc6 {[%clk 0:00:02]} 36. Qb3 {[%clk 0:01:41]}  Nd8 {[%clk 0:00:02]} 37. Bg5 {[%clk 0:01:39]}  Nf7 {[%clk 0:00:00]} 38. Bxe6 {[%clk 0:01:37]} 1-0


[Site "https://www.chess.com"]